fUST/lending_fUST_20250227
["ID","MTS","AMOUNT","RATE_DAILY","PERIOD"]
[354634737,1740600641531,-500.0,0.00053972,120]
[354634738,1740600641540,-251.92,0.00053972,120]
[354634739,1740600641550,-500.0,0.00053972,120]
[354634740,1740600641560,-500.0,0.00053972,120]
[354634741,1740600641569,-637.52,0.00053972,120]
[354634742,1740600641579,-500.0,0.00053972,120]
[354634743,1740600641588,-991.92,0.00053972,120]
[354634744,1740600641598,-500.0,0.00053972,120]
[354634745,1740600641608,-500.0,0.00053972,120]
[354634746,1740600641624,-4673.75,0.00053972,7]
[354634747,1740600641634,-606.25,0.00053972,120]
[354634748,1740600641646,-764.98,0.00053972,120]
[354634749,1740600641657,-500.0,0.00053972,120]
[354634750,1740600641666,-500.0,0.00053972,120]
[354634751,1740600641675,-1011.23,0.00053972,120]
[354634752,1740600641686,-1311.22,0.00053972,120]
[354634753,1740600641696,-500.0,0.00053972,120]
[354634754,1740600641705,-500.0,0.00053972,120]
[354634755,1740600641715,-500.0,0.00053972,120]
[354634756,1740600641724,-4433.97,0.00053972,120]
[354634757,1740600641735,-500.0,0.00053972,120]
[354634758,1740600641744,-537.12,0.00053972,120]
[354634759,1740600641753,-500.0,0.00053972,120]
[354634760,1740600641763,-244.1448383,0.00053972,120]
[354634761,1740600641772,-500.0,0.00053972,120]
[354634762,1740600641783,-500.0,0.00053972,120]
[354634763,1740600641792,-1024.37,0.00053972,120]
[354634764,1740600641801,-500.0,0.00053972,120]
[354634765,1740600641810,-156.27,0.00053972,120]
[354634766,1740600641819,-500.0,0.00053972,120]
[354634767,1740600641829,-500.0,0.00053972,120]
[354634768,1740600641841,-6554.1,0.00053972,120]
[354634769,1740600641853,-500.0,0.00053972,120]
[354634770,1740600641863,-151.0,0.00054,120]
[354634771,1740600641872,-500.0,0.000542,10]
[354634772,1740600641882,-500.0,0.00054246,120]
[354634773,1740600641892,-500.0,0.00054246,120]
[354634774,1740600641902,-500.0,0.00054246,120]
[354634775,1740600641911,-500.0,0.00054246,120]
[354634776,1740600641920,-500.0,0.00054246,120]
[354634777,1740600641930,-500.0,0.00054246,120]
[354634778,1740600641939,-500.0,0.00054246,120]
[354634779,1740600641949,-991.92,0.00054246,120]
[354634780,1740600641959,-386.76,0.00054246,120]
[354634781,1740600641968,-500.0,0.00054246,120]
[354634782,1740600641978,-4673.75,0.00054246,7]
[354634783,1740600641987,-606.25,0.00054246,120]
[354634784,1740600641997,-764.98,0.00054246,120]
[354634785,1740600642006,-158.98,0.00054246,120]
[354634786,1740600642015,-500.0,0.00054246,120]
[354634787,1740600642025,-1011.23,0.00054246,120]
[354634788,1740600642034,-1311.22,0.00054246,120]
[354634789,1740600642043,-500.0,0.00054246,120]
[354634790,1740600642054,-500.0,0.00054246,120]
[354634791,1740600642064,-500.0,0.00054246,120]
[354634792,1740600642073,-4433.97,0.00054246,120]
[354634793,1740600642083,-500.0,0.00054246,120]
[354634794,1740600642092,-537.12,0.00054246,120]
[354634795,1740600642101,-500.0,0.00054246,120]
[354634796,1740600642111,-500.0,0.00054246,120]
[354634797,1740600642121,-500.0,0.00054246,120]
[354634798,1740600642132,-1024.37,0.00054246,120]
[354634799,1740600642141,-500.0,0.00054246,120]
[354634800,1740600642150,-500.0,0.00054246,120]
[354634801,1740600642159,-500.0,0.00054246,120]
[354634802,1740600642169,-6554.1,0.00054246,120]
[354634803,1740600642178,-500.0,0.00054246,120]
[354634804,1740600642187,-500.0,0.00054333,10]
[354634805,1740600642196,-500.0,0.00054333,10]
[354634806,1740600642205,-500.0,0.00054333,10]
[354634807,1740600642214,-500.0,0.0005452,120]
[354634808,1740600642224,-500.0,0.0005452,120]
[354634809,1740600642233,-500.0,0.0005452,120]
[354634810,1740600642242,-500.0,0.0005452,120]
[354634811,1740600642251,-500.0,0.0005452,120]
[354634812,1740600642260,-500.0,0.0005452,120]
[354634813,1740600642269,-991.92,0.0005452,120]
[354634814,1740600642279,-500.0,0.0005452,120]
[354634815,1740600642288,-4673.75,0.0005452,7]
[354634816,1740600642297,-606.25,0.0005452,120]
[354634817,1740600642307,-764.98,0.0005452,120]
[354634818,1740600642317,-500.0,0.0005452,120]
[354634819,1740600642327,-1011.23,0.0005452,120]
[354634820,1740600642335,-1311.22,0.0005452,120]
[354634821,1740600642345,-500.0,0.0005452,120]
[354634822,1740600642355,-500.0,0.0005452,120]
[354634823,1740600642364,-500.0,0.0005452,120]
[354634824,1740600642374,-4433.97,0.0005452,120]
[354634825,1740600642384,-500.0,0.0005452,120]
[354634826,1740600642393,-537.12,0.0005452,120]
[354634827,1740600642403,-500.0,0.0005452,120]
[354634828,1740600642412,-500.0,0.0005452,120]
[354634829,1740600642422,-500.0,0.0005452,120]
[354634831,1740600642431,-1024.37,0.0005452,120]
[354634833,1740600642441,-500.0,0.0005452,120]
[354634835,1740600642450,-500.0,0.0005452,120]
[354634836,1740600642459,-500.0,0.0005452,120]
[354634837,1740600642469,-6554.1,0.0005452,120]
[354634839,1740600642478,-500.0,0.0005452,120]
[354634841,1740600642489,-607.84,0.000546,30]
[354634843,1740600642499,-177.53,0.000546,30]
[354634845,1740600642508,-661.75,0.000546,30]
[354634847,1740600642518,-303.86116049,0.00054694,2]
[354634849,1740600642527,-500.0,0.00054794,120]
[354634851,1740600642536,-500.0,0.00054794,120]
[354634852,1740600642546,-401.02440281,0.00054794,120]
[354634853,1740600642555,-600.0,0.00054794,120]
[354634854,1740600642564,-600.0,0.00054794,120]
[354634855,1740600642574,-600.0,0.00054794,120]
[354634856,1740600642583,-600.0,0.00054794,120]
[354634857,1740600642592,-600.0,0.00054794,120]
[354634858,1740600642604,-500.0,0.00054794,120]
[354634859,1740600642614,-500.0,0.00054794,120]
[354634860,1740600642625,-500.0,0.00054794,120]
[354634861,1740600642635,-991.92,0.00054794,120]
[354634862,1740600642645,-272.48,0.00054794,120]
[354634863,1740600642655,-4673.75,0.00054794,7]
[354634864,1740600642664,-606.25,0.00054794,120]
[354634865,1740600642673,-764.98,0.00054794,120]
[354634866,1740600642683,-500.0,0.00054794,120]
[354634867,1740600642693,-1011.23,0.00054794,120]
[354634868,1740600642702,-1311.22,0.00054794,120]
[354634869,1740600642711,-500.0,0.00054794,120]
[354634870,1740600642721,-500.0,0.00054794,120]
[354634871,1740600642731,-500.0,0.00054794,120]
[354634872,1740600642748,-4433.97,0.00054794,120]
[354634873,1740600642761,-434.16,0.00054794,120]
[354634874,1740600642770,-537.12,0.00054794,120]
[354634875,1740600642781,-500.0,0.00054794,120]
[354634876,1740600642793,-500.0,0.00054794,120]
[354634877,1740600642805,-500.0,0.00054794,120]
[354634878,1740600642815,-1024.37,0.00054794,120]
[354634879,1740600642824,-500.0,0.00054794,120]
[354634880,1740600642835,-500.0,0.00054794,120]
[354634881,1740600642845,-500.0,0.00054794,120]
[354634882,1740600642856,-500.0,0.00054794,120]
[354634883,1740600642866,-6554.1,0.00054794,120]
[354634884,1740600642877,-500.0,0.00054794,120]
[354634885,1740600642887,-500.0,0.00055068,120]
[354634886,1740600642897,-500.0,0.00055068,120]
[354634887,1740600642906,-500.0,0.00055068,120]
[354634888,1740600642915,-500.0,0.00055068,120]
[354634889,1740600642925,-991.92,0.00055068,120]
[354634890,1740600642935,-4673.75,0.00055068,7]
[354634891,1740600642945,-606.25,0.00055068,120]
[354634892,1740600642954,-764.98,0.00055068,120]
[354634893,1740600642963,-500.0,0.00055068,120]
[354634894,1740600642973,-1011.23,0.00055068,120]
[354634895,1740600642983,-1311.22,0.00055068,120]
[354634896,1740600642992,-500.0,0.00055068,120]
[354634897,1740600643003,-500.0,0.00055068,120]
[354634898,1740600643012,-500.0,0.00055068,120]
[354634899,1740600643022,-4433.97,0.00055068,120]
[354634900,1740600643032,-537.12,0.00055068,120]
[354634901,1740600643041,-500.0,0.00055068,120]
[354634902,1740600643051,-500.0,0.00055068,120]
[354634903,1740600643060,-500.0,0.00055068,120]
[354634904,1740600643207,-1024.37,0.00055068,120]
[354634905,1740600643217,-500.0,0.00055068,120]
[354634906,1740600643228,-500.0,0.00055068,120]
[354634907,1740600643240,-500.0,0.00055068,120]
[354634908,1740600643249,-6554.1,0.00055068,120]
[354634909,1740600643258,-500.0,0.00055068,120]
[354634910,1740600643267,-500.0,0.00055342,120]
[354634911,1740600643276,-500.0,0.00055342,120]
[354634912,1740600643285,-500.0,0.00055342,120]
[354634913,1740600643295,-500.0,0.00055342,120]
[354634914,1740600643305,-991.92,0.00055342,120]
[354634915,1740600643315,-4673.75,0.00055342,7]
[354634916,1740600643325,-606.25,0.00055342,120]
[354634917,1740600643335,-764.98,0.00055342,120]
[354634918,1740600643345,-500.0,0.00055342,120]
[354634919,1740600643356,-1011.23,0.00055342,120]
[354634920,1740600643365,-1311.22,0.00055342,120]
[354634921,1740600643376,-500.0,0.00055342,120]
[354634922,1740600643386,-500.0,0.00055342,120]
[354634923,1740600643395,-500.0,0.00055342,120]
[354634924,1740600643405,-4433.97,0.00055342,120]
[354634925,1740600643415,-537.12,0.00055342,120]
[354634926,1740600643425,-500.0,0.00055342,120]
[354634927,1740600643435,-500.0,0.00055342,120]
[354634928,1740600643446,-500.0,0.00055342,120]
[354634929,1740600643457,-1024.37,0.00055342,120]
[354634930,1740600643468,-500.0,0.00055342,120]
[354634931,1740600643477,-500.0,0.00055342,120]
[354634932,1740600643486,-500.0,0.00055342,120]
[354634933,1740600643497,-6554.1,0.00055342,120]
[354634934,1740600643507,-500.0,0.00055342,120]
[354634935,1740600643516,-500.0,0.00055616,120]
[354634936,1740600643525,-500.0,0.00055616,120]
[354634937,1740600643534,-575.21,0.00055616,120]
[354634938,1740600643544,-168.78,0.00055616,120]
[354634939,1740600643553,-991.92,0.00055616,120]
[354634940,1740600643562,-4673.75,0.00055616,7]
[354634941,1740600643572,-606.25,0.00055616,120]
[354634942,1740600643581,-764.98,0.00055616,120]
[354634943,1740600643590,-500.0,0.00055616,120]
[354634944,1740600643601,-1011.23,0.00055616,120]
[354634945,1740600643613,-1311.22,0.00055616,120]
[354634946,1740600643623,-500.0,0.00055616,120]
[354634947,1740600643635,-247.71890513,0.00055616,120]
[354634948,1740600643645,-500.0,0.00055616,120]
[354634949,1740600643655,-4433.97,0.00055616,120]
[354634950,1740600643666,-537.12,0.00055616,120]
[354634951,1740600643676,-349.31,0.00055616,120]
[354634952,1740600643685,-500.0,0.00055616,120]
[354634953,1740600643697,-500.0,0.00055616,120]
[354634954,1740600643707,-1024.37,0.00055616,120]
[354634955,1740600643716,-500.0,0.00055616,120]
[354634956,1740600643725,-552.44,0.00055616,120]
[354634958,1740600643735,-219.28,0.00055616,120]
[354634960,1740600643744,-6554.1,0.00055616,120]
[354634961,1740600643753,-500.0,0.00055616,120]
[354634963,1740600643763,-500.0,0.00055888,31]
[354634965,1740600643772,-168.07900697,0.00055888,31]
[354634968,1740600643782,-500.0,0.00055889,120]
[354634970,1740600643792,-500.0,0.00055889,120]
[354634972,1740600643802,-500.0,0.00055889,120]
[354634974,1740600643812,-500.0,0.00055889,120]
[354634976,1740600643822,-193.14761589,0.00055889,120]
[354634978,1740600643832,-500.0,0.00055889,120]
[354634980,1740600643841,-570.70617815,0.00055889,120]
[354634982,1740600643851,-500.0,0.00055889,120]
[354634984,1740600643861,-500.0,0.00055889,120]
[354634986,1740600643870,-312.648346,0.00055889,120]
[354634988,1740600643882,-500.0,0.00055889,120]
[354634990,1740600643891,-168.66369259,0.00055889,120]
[354634993,1740600643900,-500.0,0.00055889,120]
[354634997,1740600643910,-500.0,0.00055889,120]
[354635000,1740600643919,-500.0,0.00055889,120]
[354635003,1740600643929,-2000.0,0.00055889,120]
[354635006,1740600643938,-500.0,0.00055889,120]
[354635009,1740600643947,-500.0,0.00055889,120]
[354635012,1740600643959,-500.0,0.00055889,120]
[354635015,1740600643968,-500.0,0.00055889,120]
[354635017,1740600643979,-500.0,0.00055889,120]
[354635019,1740600643989,-500.0,0.00055889,120]
[354635021,1740600643998,-500.0,0.00055889,120]
[354635023,1740600644007,-500.0,0.00055889,30]
[354635025,1740600644017,-500.0,0.00055889,120]
[354635027,1740600644027,-295.43,0.00055889,120]
[354635029,1740600644036,-500.0,0.0005589,120]
[354635031,1740600644045,-500.0,0.0005589,120]
[354635033,1740600644055,-991.92,0.0005589,120]
[354635036,1740600644065,-4673.75,0.0005589,7]
[354635039,1740600644074,-606.25,0.0005589,120]
[354635042,1740600644083,-764.98,0.0005589,120]
[354635045,1740600644093,-193.35,0.0005589,120]
[354635048,1740600644102,-1011.23,0.0005589,120]
[354635051,1740600644112,-1311.22,0.0005589,120]
[354635054,1740600644121,-500.0,0.0005589,120]
[354635057,1740600644132,-500.0,0.0005589,120]
[354635060,1740600644142,-4433.97,0.0005589,120]
[354635063,1740600644151,-537.12,0.0005589,120]
[354635066,1740600644160,-500.0,0.0005589,120]
[354635069,1740600644172,-500.0,0.0005589,120]
[354635072,1740600644181,-1024.37,0.0005589,120]
[354635075,1740600644192,-500.0,0.0005589,120]
[354635078,1740600644201,-6554.1,0.0005589,120]
[354635080,1740600644210,-500.0,0.0005589,120]
[354635083,1740600644219,-303.86116049,0.00055927,2]
[354635085,1740600644229,-297.24489136,0.00056163,120]
[354635087,1740600644238,-500.0,0.00056163,120]
[354635089,1740600644247,-500.0,0.00056163,120]
[354635091,1740600644256,-500.0,0.00056163,120]
[354635093,1740600644265,-500.0,0.00056163,120]
[354635095,1740600644275,-500.0,0.00056163,120]
[354635097,1740600644284,-609.86,0.00056164,120]
[354635099,1740600644293,-991.92,0.00056164,120]
[354635101,1740600644302,-4673.75,0.00056164,7]
[354635103,1740600644311,-606.25,0.00056164,120]
[354635104,1740600644320,-764.98,0.00056164,120]
[354635106,1740600644329,-1011.23,0.00056164,120]
[354635109,1740600644338,-1311.22,0.00056164,120]
[354635111,1740600644347,-500.0,0.00056164,120]
[354635112,1740600644357,-500.0,0.00056164,120]
[354635114,1740600644366,-4433.97,0.00056164,120]
[354635116,1740600644375,-537.12,0.00056164,120]
[354635118,1740600644385,-500.0,0.00056164,120]
[354635119,1740600644394,-500.0,0.00056164,120]
[354635121,1740600644404,-1024.37,0.00056164,120]
[354635123,1740600644414,-500.0,0.00056164,120]
[354635125,1740600644426,-6554.1,0.00056164,120]
[354635127,1740600644435,-500.0,0.00056164,120]
[354635128,1740600644444,-500.0,0.00056173,7]
[354635130,1740600644457,-500.0,0.00056437,120]
[354635132,1740600644476,-500.0,0.00056437,120]
[354635134,1740600644489,-500.0,0.00056437,120]
[354635135,1740600644499,-500.0,0.00056437,120]
[354635137,1740600644510,-991.92,0.00056438,120]
[354635139,1740600644520,-4673.75,0.00056438,7]
[354635141,1740600644535,-606.25,0.00056438,120]
[354635143,1740600644545,-764.98,0.00056438,120]
[354635145,1740600644554,-1011.23,0.00056438,120]
[354635147,1740600644564,-1311.22,0.00056438,120]
[354635149,1740600644576,-500.0,0.00056438,120]
[354635151,1740600644589,-500.0,0.00056438,120]
[354635153,1740600644606,-4433.97,0.00056438,120]
[354635155,1740600644618,-537.12,0.00056438,120]
[354635157,1740600644632,-500.0,0.00056438,120]
[354635159,1740600644643,-500.0,0.00056438,120]
[354635161,1740600644654,-1024.37,0.00056438,120]
[354635163,1740600644666,-500.0,0.00056438,120]
[354635165,1740600644677,-6554.1,0.00056438,120]
[354635167,1740600644689,-500.0,0.00056438,120]
[354635169,1740600644701,-500.0,0.00056711,120]
[354635171,1740600644712,-500.0,0.00056711,120]
[354635173,1740600644723,-500.0,0.00056711,120]
[354635175,1740600644735,-991.92,0.00056712,120]
[354635177,1740600644746,-4673.75,0.00056712,7]
[354635179,1740600644758,-606.25,0.00056712,120]
[354635181,1740600644772,-764.98,0.00056712,120]
[354635183,1740600644787,-1011.23,0.00056712,120]
[354635185,1740600644799,-1311.22,0.00056712,120]
[354635186,1740600644811,-500.0,0.00056712,120]
[354635188,1740600644822,-500.0,0.00056712,120]
[354635190,1740600644833,-4433.97,0.00056712,120]
[354635192,1740600644844,-537.12,0.00056712,120]
[354635193,1740600644855,-500.0,0.00056712,120]
[354635195,1740600644866,-500.0,0.00056712,120]
[354635197,1740600644880,-1024.37,0.00056712,120]
[354635199,1740600644891,-500.0,0.00056712,120]
[354635201,1740600644903,-6554.1,0.00056712,120]
[354635203,1740600644914,-501.31,0.00056712,120]
[354635205,1740600644926,-500.0,0.00056985,120]
[354635206,1740600644936,-500.0,0.00056985,120]
[354635208,1740600644947,-500.0,0.00056985,120]
[354635210,1740600644957,-991.92,0.00056986,120]
[354635212,1740600644970,-4673.75,0.00056986,7]
[354635214,1740600644980,-606.25,0.00056986,120]
[354635216,1740600644992,-764.98,0.00056986,120]
[354635218,1740600645003,-1011.23,0.00056986,120]
[354635220,1740600645015,-1311.22,0.00056986,120]
[354635222,1740600645026,-500.0,0.00056986,120]
[354635224,1740600645038,-500.0,0.00056986,120]
[354635225,1740600645049,-4433.97,0.00056986,120]
[354635227,1740600645060,-537.12,0.00056986,120]
[354635229,1740600645079,-500.0,0.00056986,120]
[354635231,1740600645091,-500.0,0.00056986,120]
[354635233,1740600645104,-1024.37,0.00056986,120]
[354635235,1740600645116,-500.0,0.00056986,120]
[354635237,1740600645131,-6554.1,0.00056986,120]
[354635239,1740600645143,-303.86116049,0.0005716,2]
[354635241,1740600645154,-500.0,0.00057259,120]
[354635243,1740600645164,-500.0,0.00057259,120]
[354635245,1740600645176,-500.0,0.00057259,120]
[354635247,1740600645187,-991.92,0.0005726,120]
[354635248,1740600645197,-4673.75,0.0005726,7]
[354635250,1740600645209,-606.25,0.0005726,120]
[354635252,1740600645220,-764.98,0.0005726,120]
[354635254,1740600645233,-1011.23,0.0005726,120]
[354635256,1740600645244,-1311.22,0.0005726,120]
[354635259,1740600645255,-500.0,0.0005726,120]
[354635260,1740600645266,-500.0,0.0005726,120]
[354635262,1740600645276,-4433.97,0.0005726,120]
[354635264,1740600645287,-537.12,0.0005726,120]
[354635266,1740600645297,-500.0,0.0005726,120]
[354635268,1740600645307,-500.0,0.0005726,120]
[354635270,1740600645319,-1024.37,0.0005726,120]
[354635271,1740600645329,-473.36258064,0.0005726,120]
[354635273,1740600645340,-6554.1,0.0005726,120]
[354635275,1740600645350,-500.0,0.00057533,120]
[354635277,1740600645360,-153.0,0.00057533,120]
[354635279,1740600645373,-991.92,0.00057534,120]
[354635281,1740600645385,-4673.75,0.00057534,7]
[354635283,1740600645395,-606.25,0.00057534,120]
[354635285,1740600645406,-764.98,0.00057534,120]
[354635286,1740600645417,-1011.23,0.00057534,120]
[354635288,1740600645428,-1311.22,0.00057534,120]
[354635290,1740600645438,-500.0,0.00057534,120]
[354635292,1740600645449,-349.25,0.00057534,120]
[354635294,1740600645459,-4433.97,0.00057534,120]
[354635296,1740600645470,-537.12,0.00057534,120]
[354635298,1740600645480,-500.0,0.00057534,120]
[354635300,1740600645491,-268.05,0.00057534,120]
[354635301,1740600645502,-1024.37,0.00057534,120]
[354635303,1740600645513,-6554.1,0.00057534,120]
[354635305,1740600645525,-162.02,0.000576,30]
[354635307,1740600645535,-626.48,0.00057807,120]
[354635309,1740600645546,-991.92,0.00057808,120]
[354635311,1740600645556,-4673.75,0.00057808,7]
[354635314,1740600645567,-606.25,0.00057808,120]
[354635317,1740600645578,-764.98,0.00057808,120]
[354635319,1740600645588,-1011.23,0.00057808,120]
[354635321,1740600645599,-1311.22,0.00057808,120]
[354635323,1740600645610,-500.0,0.00057808,120]
[354635325,1740600645624,-4433.97,0.00057808,120]
[354635327,1740600645638,-537.12,0.00057808,120]
[354635328,1740600645648,-206.01396398,0.00057808,120]
[354635329,1740600645659,-1024.37,0.00057808,120]
[354635330,1740600645670,-6554.1,0.00057808,120]
[354635332,1740600645681,-1000.0,0.00057852,15]
[354635334,1740600645693,-1224.94,0.000579,30]
[354635335,1740600645703,-11315.99,0.00058081,120]
[354635336,1740600645714,-991.92,0.00058082,120]
[354635337,1740600645725,-4673.75,0.00058082,7]
[354635338,1740600645735,-606.25,0.00058082,120]
[354635339,1740600645746,-764.98,0.00058082,120]
[354635340,1740600645756,-1011.23,0.00058082,120]
[354635341,1740600645767,-1311.22,0.00058082,120]
[354635342,1740600645777,-500.0,0.00058082,120]
[354635343,1740600645788,-4433.97,0.00058082,120]
[354635344,1740600645800,-537.12,0.00058082,120]
[354635345,1740600645810,-1024.37,0.00058082,120]
[354635346,1740600645821,-6554.1,0.00058082,120]
[354635347,1740600645831,-323.25,0.000582,2]
[354635348,1740600645842,-992.06,0.00058356,120]
[354635349,1740600645853,-4673.8475,0.00058356,7]
[354635350,1740600645864,-606.25,0.00058356,120]
[354635351,1740600645875,-765.12,0.00058356,120]
[354635352,1740600645888,-1011.41,0.00058356,120]
[354635353,1740600645899,-1311.42,0.00058356,120]
[354635355,1740600645911,-484.1,0.00058356,120]
[354635357,1740600645921,-4434.03,0.00058356,120]
[354635359,1740600645932,-537.29,0.00058356,120]
[354635361,1740600645943,-1024.59,0.00058356,120]
[354635363,1740600645953,-6554.15,0.00058356,120]
[354635365,1740600645964,-636.61,0.000585,60]
[354635367,1740600645973,-636.61,0.000585,60]
[354635369,1740600645983,-636.61,0.000585,60]
[354635371,1740600645992,-636.61,0.000585,60]
[354635372,1740600646002,-636.61,0.000585,60]
[354635374,1740600646012,-636.61,0.000585,60]
[354635376,1740600646021,-636.61,0.000585,60]
[354635378,1740600646031,-636.61,0.000585,60]
[354635380,1740600646040,-636.61,0.000585,60]
[354635382,1740600646050,-636.61,0.000585,60]
[354635384,1740600646059,-636.61,0.000585,60]
[354635385,1740600646070,-636.61,0.000585,60]
[354635387,1740600646079,-5668.19633561,0.00058575,120]
[354635389,1740600646089,-493.85604,0.00058688,30]
[354635391,1740600646099,-413.977976,0.000588,120]
[354635393,1740600646108,-1000.0,0.00059813,14]
[354635395,1740600646118,-1000.0,0.00059813,15]
[354635410,1740600646282,-1000.0,0.00059813,14]
[354635411,1740600646293,-607.84,0.000609,30]
[354635412,1740600646302,-177.53,0.000609,30]
[354635413,1740600646312,-661.75,0.000609,30]
[354635414,1740600646322,-1000.0,0.00061652,7]
[354635415,1740600646332,-151.0,0.00063014,120]
[354635416,1740600646345,-164.52511022,0.00063014,120]
[354635417,1740600646355,-164.52511022,0.00063014,120]
[354635418,1740600646365,-164.52511022,0.00063014,120]
[354635419,1740600646375,-164.52511022,0.00063014,120]
[354635420,1740600646388,-164.52511022,0.00063014,120]
[354635421,1740600646398,-164.52,0.00063014,120]
[354635422,1740600646407,-11315.99,0.0006356,120]
[354635423,1740600646417,-152.0,0.00065753,120]
[354635424,1740600646426,-350.200208,0.00067871,15]
[354635425,1740600646436,-357.81,0.00068493,10]
[354635426,1740600646445,-682.32,0.00068493,10]
[354635427,1740600646454,-11315.99,0.0006904,120]
[354635428,1740600646464,-1500.0,0.00069832,14]
[354635429,1740600646473,-1500.0,0.00069832,14]
[354635430,1740600646482,-64691.45747149,0.00069999,60]
[354635431,1740600646491,-35085.79291035,0.0007,30]
[354635432,1740600646500,-31599.53586016,0.0007,30]
[354635433,1740600646510,-5438.40590068,0.0007,30]
[354635434,1740600646519,-19607.61712864,0.00070215,2]
[354635435,1740600646528,-500.0,0.00070607,2]
[354635437,1740600646538,-500.0,0.00071155,2]
[354635439,1740600646547,-169.886,0.00071303,120]
[354635442,1740600646556,-969.75,0.000715,7]
[354635445,1740600646565,-1500.0,0.00071671,7]
[354635448,1740600646575,-500.0,0.00071703,2]
[354635451,1740600646584,-151.0,0.00072027,120]
[354635454,1740600646593,-500.0,0.00072251,2]
[354635458,1740600646604,-5668.19633561,0.0007235,120]
[354635459,1740600646616,-500.0,0.00072799,2]
[354635461,1740600646625,-2200.0,0.00072834,120]
[354635463,1740600646637,-607.84,0.000731,30]
[354635465,1740600646648,-177.53,0.000731,30]
[354635467,1740600646658,-661.75,0.000731,30]
[354635469,1740600646667,-302.0,0.00073347,2]
[354635471,1740600646676,-11315.99,0.00074519,120]
[354635473,1740600646686,-1877.83935887,0.00078771,28]
[354635475,1740600646695,-11315.99,0.00079998,120]
[354635477,1740600646704,-151.0,0.00081041,120]
[354635478,1740600646714,-15820.81716561,0.0008124,30]
[354635480,1740600646723,-2000.0,0.00082805,14]
[354635482,1740600646733,-2000.0,0.00082805,14]
[354635485,1740600646744,-153.55676953,0.00083117,120]
[354635486,1740600646754,-153.55676953,0.00084316,120]
[354635489,1740600646764,-2000.0,0.00084645,7]
[354635490,1740600646773,-11315.99,0.00085478,120]
[354635493,1740600646783,-153.55676953,0.00085514,120]
[354635495,1740600646792,-5668.19633561,0.00086125,120]
[354635497,1740600646802,-153.55676953,0.00086713,120]
[354635499,1740600646811,-153.55676953,0.00087912,120]
[354635501,1740600646822,-3000.0,0.000889,120]
[354635502,1740600646831,-153.55676953,0.00089111,120]
[354635504,1740600646840,-808.12,0.000897,14]
[354635506,1740600646850,-302.0,0.00090055,120]
[354635508,1740600646859,-153.55676953,0.0009031,120]
[354635510,1740600646867,-169.886,0.00090651,120]
[354635512,1740600646876,-11315.99,0.00090957,120]
[354635514,1740600646888,-153.55676953,0.00091508,120]
[354635516,1740600646897,-153.55676953,0.00092707,120]
[354635518,1740600646907,-153.55676953,0.00093906,120]
[354635520,1740600646916,-1000000.0,0.00095,120]